fUSD/lending_fUSD_20260612
["ID","MTS","AMOUNT","RATE_DAILY","PERIOD"]
[424916875,1781271048000,-1113.038951,0.00015,2]
[424916879,1781271048000,-900.0,0.00015068,2]
[424916878,1781271048000,-150.0,0.00015068,2]
[424916889,1781271048000,-476.440479,0.00015068,2]
[424916881,1781271048000,-476.440479,0.00015068,2]
[424916882,1781271048000,-476.440479,0.00015068,2]
[424916907,1781271048000,-300.0,0.00015333,2]
[424916872,1781271048000,-1113.038951,0.00015,2]
[424916914,1781271048000,-2000.0,0.00015334,2]
[424916938,1781271048000,-2000.0,0.00015343,2]
[424916941,1781271048000,-2000.0,0.00015343,2]
[424916939,1781271048000,-2000.0,0.00015343,2]
[424916942,1781271048000,-2000.0,0.00015343,2]
[424916948,1781271048000,-2000.0,0.00015343,2]
[424916949,1781271048000,-2000.0,0.00015343,2]
[424916952,1781271048000,-2000.0,0.00015343,2]
[424916951,1781271048000,-2000.0,0.00015343,2]
[424916953,1781271048000,-220.83,0.00015343,2]
[424916950,1781271048000,-2000.0,0.00015343,2]
[424916954,1781271048000,-2000.0,0.00015343,2]
[424916958,1781271048000,-3000.0,0.00015343,2]
[424916957,1781271048000,-150.0,0.00015343,2]
[424916956,1781271048000,-1982.49,0.00015343,2]
[424916960,1781271048000,-3000.0,0.00015343,2]
[424916959,1781271048000,-3000.0,0.00015343,2]
[424916966,1781271048000,-1219.53,0.00015343,2]
[424916961,1781271048000,-3000.0,0.00015343,2]
[424916967,1781271048000,-3000.0,0.00015343,2]
[424916965,1781271048000,-3000.0,0.00015343,2]
[424916963,1781271048000,-3000.0,0.00015343,2]
[424916964,1781271048000,-3000.0,0.00015343,2]
[424916962,1781271048000,-3000.0,0.00015343,2]
[424916968,1781271048000,-3000.0,0.00015343,2]
[424916913,1781271048000,-2000.0,0.00015334,2]
[424916943,1781271048000,-2000.0,0.00015343,2]
[424916940,1781271048000,-2000.0,0.00015343,2]
[424916955,1781271048000,-2000.0,0.00015343,2]
[424916937,1781271048000,-2000.0,0.00015343,2]
[424916922,1781271048000,-2000.0,0.00015334,2]
[424916936,1781271048000,-2000.0,0.00015343,2]
[424916912,1781271048000,-2000.0,0.00015334,2]
[424916921,1781271048000,-2000.0,0.00015334,2]
[424916915,1781271048000,-2000.0,0.00015334,2]
[424916923,1781271048000,-2000.0,0.00015334,2]
[424916917,1781271048000,-2000.0,0.00015334,2]
[424916916,1781271048000,-2000.0,0.00015334,2]
[424916919,1781271048000,-2000.0,0.00015334,2]
[424916920,1781271048000,-1766.88,0.00015334,2]
[424916924,1781271048000,-2000.0,0.00015334,2]
[424916926,1781271048000,-2000.0,0.00015334,2]
[424916928,1781271048000,-1941.72,0.00015334,2]
[424916918,1781271048000,-2000.0,0.00015334,2]
[424916947,1781271048000,-529.98,0.00015343,2]
[424916929,1781271048000,-300.0,0.00015342,2]
[424916945,1781271048000,-2000.0,0.00015343,2]
[424916944,1781271048000,-2000.0,0.00015343,2]
[424916935,1781271048000,-2000.0,0.00015343,2]
[424916932,1781271048000,-300.0,0.00015342,2]
[424916934,1781271048000,-666.0,0.00015342,2]
[424916930,1781271048000,-300.0,0.00015342,2]
[424916931,1781271048000,-300.0,0.00015342,2]
[424916925,1781271048000,-1902.86,0.00015334,2]
[424916927,1781271048000,-2000.0,0.00015334,2]
[424916933,1781271048000,-367.47298027,0.00015342,2]
[424916946,1781271048000,-2000.0,0.00015343,2]
[424917008,1781271049000,-150.0,0.000159,2]
[424917009,1781271049000,-150.0,0.000159,2]
[424917007,1781271049000,-389.68,0.000159,2]
[424917005,1781271049000,-162.33,0.00015852,2]
[424917016,1781271049000,-6000.0,0.00016,2]
[424917001,1781271049000,-2843.77201288,0.000158,5]
[424917003,1781271049000,-8893.9971017,0.000158,2]
[424917002,1781271049000,-784.5147072,0.000158,2]
[424916999,1781271049000,-1555.5,0.00015698,2]
[424917010,1781271049000,-151.98405163,0.000159,2]
[424917006,1781271049000,-8893.9971017,0.000159,2]
[424917014,1781271049000,-160.0,0.00016,8]
[424917023,1781271049000,-300.0,0.00016199,2]
[424917013,1781271049000,-204.94,0.00016,2]
[424917011,1781271049000,-500.0,0.00015918,2]
[424917015,1781271049000,-779.62905849,0.00016,2]
[424917019,1781271049000,-243.23268305,0.00016085,2]
[424917017,1781271049000,-300.0,0.00016,2]
[424917026,1781271049000,-8893.9971017,0.000162,2]
[424917020,1781271049000,-8893.9971017,0.000161,2]
[424917027,1781271049000,-25734.68,0.000162,2]
[424917022,1781271049000,-300.0,0.00016199,2]
[424917021,1781271049000,-8291.52,0.00016116,2]
[424917018,1781271049000,-300.0,0.00016,2]
[424917028,1781271049000,-12835.84,0.000162,2]
[424917000,1781271049000,-2000.0,0.0001574,2]
[424917012,1781271049000,-676.28,0.00015971,2]
[424916998,1781271049000,-6111.0,0.00015659,2]
[424916973,1781271049000,-304.88,0.00015343,2]
[424916995,1781271049000,-8893.9971017,0.000156,2]
[424916969,1781271049000,-3000.0,0.00015343,2]
[424917024,1781271049000,-300.0,0.00016199,2]
[424916970,1781271049000,-1508.14,0.00015343,2]
[424916979,1781271049000,-300.0,0.00015477,2]
[424916980,1781271049000,-671.10899491,0.00015477,2]
[424916975,1781271049000,-10000.0,0.00015429,2]
[424916972,1781271049000,-3000.0,0.00015343,2]
[424916971,1781271049000,-3000.0,0.00015343,2]
[424916976,1781271049000,-300.0,0.00015477,2]
[424916974,1781271049000,-1252.0,0.00015346,2]
[424916977,1781271049000,-300.0,0.00015477,2]
[424916978,1781271049000,-300.0,0.00015477,2]
[424916982,1781271049000,-2000.0,0.00015478,2]
[424916992,1781271049000,-784.5147072,0.000155,2]
[424916981,1781271049000,-2000.0,0.00015478,2]
[424916983,1781271049000,-2000.0,0.00015478,2]
[424916984,1781271049000,-2000.0,0.00015478,2]
[424916986,1781271049000,-2000.0,0.00015478,2]
[424916990,1781271049000,-2000.0,0.00015478,2]
[424916987,1781271049000,-2000.0,0.00015478,2]
[424916985,1781271049000,-2000.0,0.00015478,2]
[424916988,1781271049000,-2000.0,0.00015478,2]
[424916991,1781271049000,-1000.0,0.00015478,2]
[424916993,1781271049000,-8893.9971017,0.000155,2]
[424916996,1781271049000,-451.0,0.00015638,2]
[424916997,1781271049000,-446.0,0.00015638,2]
[424917004,1781271049000,-2276.54541104,0.00015807,2]
[424916994,1781271049000,-784.5147072,0.000156,2]
[424917025,1781271049000,-300.0,0.00016199,2]
[424916989,1781271049000,-1000.0,0.00015478,2]
[424917030,1781271049000,-1613.0535,0.00016246,2]
[424917062,1781271049000,-8893.9971017,0.000166,2]
[424917061,1781271049000,-1000.0,0.000165,2]
[424917064,1781271049000,-2129.0,0.0001684,2]
[424917063,1781271049000,-1672.7364795,0.00016794,2]
[424917067,1781271049000,-2400.0,0.00017284,2]
[424917077,1781271049000,-300.0,0.00017999,2]
[424917066,1781271049000,-1000.0,0.0001718,2]
[424917069,1781271049000,-1734.62772924,0.00017342,2]
[424917074,1781271049000,-1798.80895522,0.0001789,2]
[424917073,1781271049000,-1241.86714978,0.0001789,2]
[424917068,1781271049000,-900.0,0.00017284,7]
[424917070,1781271049000,-794.64861957,0.000177,2]
[424917076,1781271049000,-300.0,0.00017999,2]
[424917072,1781271049000,-389.68,0.000178,2]
[424917071,1781271049000,-676.28,0.00017746,2]
[424917075,1781271049000,-300.0,0.00017999,2]
[424917029,1781271049000,-298.04,0.000162,2]
[424917078,1781271049000,-300.0,0.00017999,2]
[424917080,1781271049000,-166.14257116,0.00018,2]
[424917081,1781271049000,-103191.67677667,0.00018,2]
[424917088,1781271049000,-166.14257116,0.000182,2]
[424917082,1781271049000,-1209.8848882,0.00018,2]
[424917085,1781271049000,-505.0,0.00018,2]
[424917087,1781271049000,-8722.0946288,0.000182,2]
[424917086,1781271049000,-1805.48015254,0.000181,2]
[424917083,1781271049000,-1323.65669806,0.00018,2]
[424917084,1781271049000,-350.0,0.00018,2]
[424917060,1781271049000,-2056.87909282,0.00016498,2]
[424917057,1781271049000,-900.0,0.00016438,2]
[424917079,1781271049000,-8722.0946288,0.00018,2]
[424917056,1781271049000,-714.885909,0.00016438,2]
[424917055,1781271049000,-714.885909,0.00016438,2]
[424917033,1781271049000,-300.0,0.00016437,2]
[424917040,1781271049000,-151.0,0.00016438,2]
[424917032,1781271049000,-8893.9971017,0.000164,2]
[424917031,1781271049000,-200.0,0.0001634,2]
[424917035,1781271049000,-300.0,0.00016437,2]
[424917038,1781271049000,-151.0,0.00016438,2]
[424917037,1781271049000,-207.0,0.00016438,2]
[424917036,1781271049000,-1088.1,0.00016438,2]
[424917039,1781271049000,-151.0,0.00016438,2]
[424917041,1781271049000,-714.885909,0.00016438,2]
[424917042,1781271049000,-714.885909,0.00016438,2]
[424917050,1781271049000,-714.885909,0.00016438,2]
[424917034,1781271049000,-300.0,0.00016437,2]
[424917052,1781271049000,-714.885909,0.00016438,2]
[424917058,1781271049000,-152.0,0.00016438,2]
[424917051,1781271049000,-714.885909,0.00016438,2]
[424917054,1781271049000,-714.885909,0.00016438,2]
[424917065,1781271049000,-1164.85634935,0.00017,2]
[424917053,1781271049000,-714.885909,0.00016438,2]
[424917048,1781271049000,-714.885909,0.00016438,2]
[424917059,1781271049000,-500.0,0.00016498,2]
[424917045,1781271049000,-714.885909,0.00016438,2]
[424917047,1781271049000,-714.885909,0.00016438,2]
[424917046,1781271049000,-714.885909,0.00016438,2]
[424917044,1781271049000,-714.885909,0.00016438,2]
[424917043,1781271049000,-714.885909,0.00016438,2]
[424917049,1781271049000,-714.885909,0.00016438,2]
[424917110,1781271050000,-387.603441,0.00019046,7]
[424917117,1781271050000,-250.0,0.00019178,2]
[424917102,1781271050000,-1934.38338736,0.00018986,2]
[424917112,1781271050000,-223.63775775,0.00019178,2]
[424917113,1781271050000,-201.27398198,0.00019178,2]
[424917115,1781271050000,-250.0,0.00019178,2]
[424917114,1781271050000,-181.14658378,0.00019178,2]
[424917116,1781271050000,-250.0,0.00019178,2]
[424917122,1781271050000,-151.0,0.00019178,2]
[424917124,1781271050000,-537.358854,0.00019178,2]
[424917119,1781271050000,-163.03192541,0.00019178,2]
[424917118,1781271050000,-266.62628395,0.00019178,2]
[424917120,1781271050000,-151.0,0.00019178,2]
[424917121,1781271050000,-151.0,0.00019178,2]
[424917125,1781271050000,-537.358854,0.00019178,2]
[424917109,1781271050000,-505.0,0.00019033,2]
[424917123,1781271050000,-152.342146,0.00019178,2]
[424917111,1781271050000,-8722.0946288,0.000191,2]
[424917091,1781271050000,-2155.17,0.00018356,2]
[424917105,1781271050000,-300.0,0.00018999,2]
[424917090,1781271050000,-3790.0,0.00018331,5]
[424917098,1781271050000,-8722.0946288,0.000185,2]
[424917099,1781271050000,-8722.0946288,0.000187,2]
[424917100,1781271050000,-200.0,0.00018778,3]
[424917089,1781271050000,-200.0,0.00018253,2]
[424917092,1781271050000,-8722.0946288,0.000184,2]
[424917093,1781271050000,-166.14257116,0.000184,2]
[424917108,1781271050000,-439086.48425929,0.00019,2]
[424917094,1781271050000,-231.25259069,0.000184,2]
[424917096,1781271050000,-1865.36488656,0.00018438,2]
[424917097,1781271050000,-1417.0,0.00018472,2]
[424917101,1781271050000,-8722.0946288,0.000189,2]
[424917107,1781271050000,-1597.91046984,0.00019,2]
[424917106,1781271050000,-5247.19895365,0.00019,2]
[424917104,1781271050000,-300.0,0.00018999,2]
[424917103,1781271050000,-300.0,0.00018999,2]
[424917095,1781271050000,-1088.1,0.0001841,2]
[424917126,1781271050000,-537.358854,0.00019178,2]
[424917128,1781271050000,-537.358854,0.00019178,2]
[424917129,1781271050000,-537.358854,0.00019178,2]
[424917151,1781271050000,-8722.0946288,0.000193,2]
[424917150,1781271050000,-209.390933,0.00019178,2]
[424917148,1781271050000,-151.0,0.00019178,2]
[424917156,1781271050000,-8722.0946288,0.000195,2]
[424917154,1781271050000,-458.718134,0.00019393,7]
[424917149,1781271050000,-151.0,0.00019178,2]
[424917160,1781271050000,-2005.9555727,0.00019534,2]
[424917152,1781271050000,-307.97603717,0.00019301,2]
[424917157,1781271050000,-13548.723146,0.000195,2]
[424917159,1781271050000,-676.28,0.0001952,2]
[424917158,1781271050000,-389.68,0.000195,2]
[424917162,1781271050000,-175.68,0.00019726,2]
[424917164,1781271050000,-150.0,0.00019817,2]
[424917165,1781271050000,-150.0,0.00019852,2]
[424917166,1781271050000,-150.115,0.00019852,2]
[424917131,1781271050000,-537.358854,0.00019178,2]
[424917163,1781271050000,-150.0,0.00019817,2]
[424917155,1781271050000,-1000.0,0.0001948,2]
[424917161,1781271050000,-8722.0946288,0.000197,2]
[424917146,1781271050000,-151.0,0.00019178,2]
[424917130,1781271050000,-537.358854,0.00019178,2]
[424917153,1781271050000,-22422.43006691,0.00019339,7]
[424917133,1781271050000,-537.358854,0.00019178,2]
[424917127,1781271050000,-537.358854,0.00019178,2]
[424917132,1781271050000,-537.358854,0.00019178,2]
[424917135,1781271050000,-537.358854,0.00019178,2]
[424917138,1781271050000,-537.358854,0.00019178,2]
[424917140,1781271050000,-151.0,0.00019178,2]
[424917134,1781271050000,-537.358854,0.00019178,2]
[424917142,1781271050000,-151.0,0.00019178,2]
[424917141,1781271050000,-151.0,0.00019178,2]
[424917137,1781271050000,-537.358854,0.00019178,2]
[424917144,1781271050000,-151.0,0.00019178,2]
[424917143,1781271050000,-151.0,0.00019178,2]
[424917145,1781271050000,-151.0,0.00019178,2]
[424917147,1781271050000,-151.0,0.00019178,2]
[424917136,1781271050000,-537.358854,0.00019178,2]
[424917139,1781271050000,-537.358854,0.00019178,2]
[424917204,1781271051000,-151.0,0.00020082,2]
[424917206,1781271051000,-500.0,0.00020082,2]
[424917202,1781271051000,-151.0,0.00020082,2]
[424917209,1781271051000,-151.0,0.00020082,2]
[424917200,1781271051000,-500.0,0.00020082,2]
[424917198,1781271051000,-151.0,0.00020082,2]
[424917191,1781271051000,-151.0,0.00020082,2]
[424917196,1781271051000,-151.0,0.00020082,2]
[424917207,1781271051000,-2080.17592889,0.00020082,2]
[424917197,1781271051000,-151.0,0.00020082,2]
[424917212,1781271051000,-151.0,0.00020082,2]
[424917203,1781271051000,-500.0,0.00020082,2]
[424917218,1781271051000,-151.0,0.00020082,2]
[424917205,1781271051000,-151.0,0.00020082,2]
[424917210,1781271051000,-500.0,0.00020082,2]
[424917211,1781271051000,-151.0,0.00020082,2]
[424917201,1781271051000,-151.0,0.00020082,2]
[424917213,1781271051000,-500.0,0.00020082,2]
[424917214,1781271051000,-151.0,0.00020082,2]
[424917215,1781271051000,-151.0,0.00020082,2]
[424917224,1781271051000,-151.0,0.00020082,2]
[424917216,1781271051000,-500.0,0.00020082,2]
[424917221,1781271051000,-500.0,0.00020082,2]
[424917199,1781271051000,-151.0,0.00020082,2]
[424917208,1781271051000,-151.0,0.00020082,2]
[424917192,1781271051000,-151.0,0.00020082,2]
[424917175,1781271051000,-400.0,0.0002,2]
[424917193,1781271051000,-151.0,0.00020082,2]
[424917217,1781271051000,-151.0,0.00020082,2]
[424917167,1781271051000,-150.0,0.00019852,2]
[424917168,1781271051000,-150.0,0.00019852,2]
[424917170,1781271051000,-150.055,0.00019852,2]
[424917169,1781271051000,-150.15,0.00019852,2]
[424917177,1781271051000,-252.0,0.0002,2]
[424917172,1781271051000,-150.0,0.00019852,2]
[424917174,1781271051000,-1979.95626,0.0002,2]
[424917171,1781271051000,-150.118,0.00019852,2]
[424917173,1781271051000,-2295.79713084,0.0002,2]
[424917176,1781271051000,-376.0,0.0002,2]
[424917178,1781271051000,-303.0,0.0002,2]
[424917188,1781271051000,-827.0,0.0002,2]
[424917189,1781271051000,-505.0,0.00020067,3]
[424917184,1781271051000,-243.0,0.0002,2]
[424917179,1781271051000,-568.0,0.0002,2]
[424917181,1781271051000,-187.0,0.0002,2]
[424917187,1781271051000,-187.0,0.0002,2]
[424917186,1781271051000,-1009.0,0.0002,2]
[424917180,1781271051000,-978.0,0.0002,2]
[424917183,1781271051000,-383.0,0.0002,2]
[424917182,1781271051000,-2328.0,0.0002,2]
[424917185,1781271051000,-807.0,0.0002,2]
[424917190,1781271051000,-200.0,0.00020082,2]
[424917195,1781271051000,-151.0,0.00020082,2]
[424917194,1781271051000,-151.0,0.00020082,2]
[424917223,1781271051000,-151.0,0.00020082,2]
[424917254,1781271051000,-376.0,0.00021,2]
[424917219,1781271051000,-500.0,0.00020082,2]
[424917251,1781271051000,-6111.0,0.00021,2]
[424917252,1781271051000,-15000.0,0.00021,2]
[424917253,1781271051000,-2909.44122439,0.00021,2]
[424917257,1781271051000,-568.0,0.00021,2]
[424917256,1781271051000,-303.0,0.00021,2]
[424917258,1781271051000,-978.0,0.00021,2]
[424917259,1781271051000,-187.0,0.00021,2]
[424917270,1781271051000,-12648.06,0.00021273,2]
[424917263,1781271051000,-807.0,0.00021,2]
[424917260,1781271051000,-2328.0,0.00021,2]
[424917264,1781271051000,-187.0,0.00021,2]
[424917262,1781271051000,-243.0,0.00021,2]
[424917265,1781271051000,-827.0,0.00021,2]
[424917268,1781271051000,-151.0,0.00021178,2]
[424917266,1781271051000,-505.0,0.000211,4]
[424917267,1781271051000,-200.0,0.00021178,2]
[424917269,1781271051000,-2236.95670847,0.00021178,2]
[424917272,1781271051000,-676.28,0.00021295,2]
[424917271,1781271051000,-792.01,0.00021273,2]
[424917274,1781271051000,-250.0,0.000213,7]
[424917277,1781271051000,-151.0,0.00021424,2]
[424917275,1781271051000,-150.0,0.00021333,2]
[424917273,1781271051000,-389.68,0.000213,2]
[424917276,1781271051000,-152.822837,0.00021424,2]
[424917220,1781271051000,-151.0,0.00020082,2]
[424917248,1781271051000,-3889.0,0.00021,2]
[424917278,1781271051000,-151.0,0.00021424,2]
[424917261,1781271051000,-383.0,0.00021,2]
[424917255,1781271051000,-252.0,0.00021,2]
[424917250,1781271051000,-15000.0,0.00021,2]
[424917226,1781271051000,-151.0,0.00020082,2]
[424917225,1781271051000,-500.0,0.00020082,2]
[424917227,1781271051000,-151.0,0.00020082,2]
[424917231,1781271051000,-500.0,0.00020082,2]
[424917230,1781271051000,-151.0,0.00020082,2]
[424917233,1781271051000,-151.0,0.00020082,2]
[424917229,1781271051000,-151.0,0.00020082,2]
[424917232,1781271051000,-151.0,0.00020082,2]
[424917228,1781271051000,-500.0,0.00020082,2]
[424917234,1781271051000,-151.0,0.00020082,2]
[424917235,1781271051000,-1275.0,0.00020153,2]
[424917236,1781271051000,-1245.0,0.00020153,2]
[424917222,1781271051000,-151.0,0.00020082,2]
[424917239,1781271051000,-200.0,0.0002063,2]
[424917240,1781271051000,-151.0,0.0002063,2]
[424917237,1781271051000,-1088.1,0.00020381,2]
[424917243,1781271051000,-915.36,0.0002073,2]
[424917244,1781271051000,-3929.0,0.00020936,5]
[424917247,1781271051000,-15000.0,0.00021,2]
[424917245,1781271051000,-15000.0,0.00021,2]
[424917238,1781271051000,-400.795535,0.00020432,7]
[424917241,1781271051000,-2157.14243826,0.0002063,2]
[424917246,1781271051000,-6111.0,0.00021,2]
[424917242,1781271051000,-1000.0,0.00020646,2]
[424917249,1781271051000,-1979.95626,0.00021,2]
[424917318,1781271052000,-450.0,0.00022,2]
[424917308,1781271052000,-2319.72410669,0.00021726,2]
[424917320,1781271052000,-252.0,0.00022,2]
[424917321,1781271052000,-303.0,0.00022,2]
[424917315,1781271052000,-166.46,0.00022,2]
[424917314,1781271052000,-150.0,0.00021918,2]
[424917311,1781271052000,-2668.0,0.000219,7]
[424917309,1781271052000,-896.0,0.00021752,7]
[424917316,1781271052000,-1979.95626,0.00022,2]
[424917310,1781271052000,-2067.7,0.000219,7]
[424917319,1781271052000,-376.0,0.00022,2]
[424917312,1781271052000,-151.0,0.00021918,2]
[424917317,1781271052000,-318.321113,0.00022,2]
[424917326,1781271052000,-383.0,0.00022,2]
[424917324,1781271052000,-187.0,0.00022,2]
[424917325,1781271052000,-2328.0,0.00022,2]
[424917323,1781271052000,-978.0,0.00022,2]
[424917327,1781271052000,-309.0,0.00022,2]
[424917329,1781271052000,-1000.0,0.00022,2]
[424917339,1781271052000,-206.0,0.00022321,2]
[424917332,1781271052000,-187.0,0.00022,2]
[424917331,1781271052000,-718.28,0.00022,2]
[424917333,1781271052000,-827.0,0.00022,2]
[424917334,1781271052000,-505.0,0.00022133,5]
[424917330,1781271052000,-807.0,0.00022,2]
[424917322,1781271052000,-568.0,0.00022,2]
[424917307,1781271052000,-152.72359966,0.00021726,2]
[424917280,1781271052000,-151.0,0.00021424,2]
[424917305,1781271052000,-241.0,0.00021496,2]
[424917328,1781271052000,-243.0,0.00022,2]
[424917281,1781271052000,-151.0,0.00021424,2]
[424917279,1781271052000,-151.0,0.00021424,2]
[424917282,1781271052000,-537.358854,0.00021424,2]
[424917286,1781271052000,-714.885909,0.00021424,2]
[424917290,1781271052000,-151.0,0.00021424,2]
[424917291,1781271052000,-714.885913,0.00021424,2]
[424917287,1781271052000,-714.885909,0.00021424,2]
[424917292,1781271052000,-151.0,0.00021424,2]
[424917285,1781271052000,-537.358858,0.00021424,2]
[424917283,1781271052000,-537.358854,0.00021424,2]
[424917284,1781271052000,-537.358854,0.00021424,2]
[424917306,1781271052000,-200.0,0.00021726,2]
[424917289,1781271052000,-714.885909,0.00021424,2]
[424917293,1781271052000,-1113.038951,0.00021424,2]
[424917295,1781271052000,-1113.038951,0.00021424,2]
[424917296,1781271052000,-1113.038947,0.00021424,2]
[424917297,1781271052000,-476.440479,0.00021424,2]
[424917303,1781271052000,-151.0,0.0002149,2]
[424917304,1781271052000,-338.0,0.00021493,2]
[424917294,1781271052000,-1113.038951,0.00021424,2]
[424917298,1781271052000,-476.440479,0.00021424,2]
[424917300,1781271052000,-476.440479,0.00021424,2]
[424917299,1781271052000,-476.440479,0.00021424,2]
[424917302,1781271052000,-10317.8354675,0.0002143,2]
[424917301,1781271052000,-674581.0579102,0.00021424,2]
[424917288,1781271052000,-151.0,0.00021424,2]
[424917338,1781271052000,-2405.55389863,0.00022274,2]
[424917313,1781271052000,-5000.0,0.00021918,2]
[424917336,1781271052000,-266.0,0.00022178,2]
[424917373,1781271052000,-807.0,0.00023,2]
[424917368,1781271052000,-978.0,0.00023,2]
[424917370,1781271052000,-2328.0,0.00023,2]
[424917369,1781271052000,-187.0,0.00023,2]
[424917367,1781271052000,-568.0,0.00023,2]
[424917371,1781271052000,-383.0,0.00023,2]
[424917372,1781271052000,-243.0,0.00023,2]
[424917375,1781271052000,-827.0,0.00023,2]
[424917376,1781271052000,-150.0,0.00023014,2]
[424917379,1781271052000,-1245.0,0.00023153,2]
[424917386,1781271052000,-1175.47375679,0.000235,2]
[424917380,1781271052000,-505.0,0.00023167,6]
[424917366,1781271052000,-303.0,0.00023,2]
[424917378,1781271052000,-1275.0,0.00023153,2]
[424917377,1781271052000,-425.00166298,0.00023136,2]
[424917381,1781271052000,-373.97700062,0.000232,2]
[424917383,1781271052000,-285.0,0.00023353,2]
[424917384,1781271052000,-2586.85809042,0.0002337,2]
[424917388,1781271052000,-1041.28768269,0.00024,2]
[424917387,1781271052000,-2682.57183977,0.00023918,2]
[424917391,1781271052000,-1259.09199984,0.00024,2]
[424917392,1781271052000,-1979.95626,0.00024,2]
[424917389,1781271052000,-10653.88005277,0.00024,14]
[424917390,1781271052000,-3600.0,0.00024,2]
[424917393,1781271052000,-500.0,0.00024,2]
[424917335,1781271052000,-458.440797,0.00022163,7]
[424917385,1781271052000,-175.49,0.00023425,2]
[424917364,1781271052000,-376.0,0.00023,2]
[424917382,1781271052000,-150.0,0.0002326,21]
[424917374,1781271052000,-187.0,0.00023,2]
[424917337,1781271052000,-202.70711956,0.00022274,2]
[424917365,1781271052000,-252.0,0.00023,2]
[424917340,1781271052000,-1088.1,0.00022353,2]
[424917342,1781271052000,-345.1773262,0.00022407,2]
[424917344,1781271052000,-1429.19604567,0.00022407,2]
[424917345,1781271052000,-1429.19604565,0.00022407,2]
[424917343,1781271052000,-345.1773262,0.00022407,2]
[424917341,1781271052000,-345.17732621,0.00022407,2]
[424917348,1781271052000,-9246.57302863,0.000225,2]
[424917350,1781271052000,-200.0,0.000226,2]
[424917346,1781271052000,-3496.0,0.00022443,5]
[424917349,1781271052000,-3671.19303059,0.000226,2]
[424917351,1781271052000,-263.475077,0.00022679,7]
[424917347,1781271052000,-501.91,0.00022466,2]
[424917353,1781271052000,-150.0,0.00022817,2]
[424917356,1781271052000,-150.0,0.00022852,2]
[424917355,1781271052000,-150.0,0.00022852,2]
[424917357,1781271052000,-150.0,0.00022852,2]
[424917354,1781271052000,-2494.55939288,0.00022822,2]
[424917394,1781271052000,-376.0,0.00024,2]
[424917359,1781271052000,-241.0,0.00022865,2]
[424917362,1781271052000,-1002.64641015,0.00023,2]
[424917363,1781271052000,-1979.95626,0.00023,2]
[424917358,1781271052000,-150.0,0.00022852,2]
[424917361,1781271052000,-1000.0,0.00023,14]
[424917360,1781271052000,-389.68,0.000229,7]
[424917352,1781271052000,-532.88591238,0.0002271,2]
[424917423,1781271053000,-1280.88388877,0.00024215,2]
[424917431,1781271053000,-1377.42282658,0.00024215,2]
[424917411,1781271053000,-1030.0,0.00024215,2]
[424917415,1781271053000,-240.3550645,0.00024215,2]
[424917414,1781271053000,-174.61919141,0.00024215,2]
[424917416,1781271053000,-1148.61238259,0.00024215,2]
[424917424,1781271053000,-209.40437684,0.00024215,2]
[424917418,1781271053000,-1191.11104074,0.00024215,2]
[424917417,1781271053000,-271.37525311,0.00024215,2]